fUSD/lending_fUSD_20250622
["ID","MTS","AMOUNT","RATE_DAILY","PERIOD"]
[367038806,1750630233239,-166.50943868,0.00035441,15]
[367038808,1750630233249,-220.12852655,0.00035444,8]
[367038810,1750630233258,-2875.01800056,0.00035453,2]
[367038812,1750630233270,-1305.0,0.00035453,2]
[367038814,1750630233283,-819.98199944,0.00035453,2]
[367038816,1750630233292,-469.36389449,0.00035461,2]
[367038818,1750630233302,-345.22780709,0.00035465,2]
[367038822,1750630233334,-435.05356359,0.00035465,2]
[367038824,1750630233345,-565.56185437,0.00035465,2]
[367038827,1750630233357,-547.25853702,0.00035465,2]
[367038828,1750630233368,-3346.5,0.00035465,2]
[367038829,1750630233379,-639.16242228,0.00035465,2]
[367038830,1750630233394,-4996.07217067,0.00035465,2]
[367038831,1750630233406,-580.54091556,0.00035465,2]
[367038833,1750630233417,-3732.01326741,0.00035465,2]
[367038836,1750630233428,-852.75952309,0.00035465,2]
[367038840,1750630233461,-447.47441214,0.00035465,2]
[367038842,1750630233473,-612.17759608,0.00035465,2]
[367038845,1750630233496,-24890.6815307,0.00035465,2]
[367038847,1750630233506,-196.20366822,0.00035475,2]
[367038849,1750630233515,-4224.44336261,0.0003548,2]
[367038851,1750630233528,-2905.18953565,0.0003548,2]
[367038853,1750630233537,-206.0,0.00035499,17]
[367038855,1750630233547,-700.0,0.000355,12]
[367038857,1750630233557,-150.0,0.00035518,2]
[367038859,1750630233568,-629.1876398,0.00035519,2]
[367038910,1750630237931,-156.0,0.00034064,2]
[367038911,1750630237941,-1000.0,0.00035434,2]
[367038912,1750630237951,-6500.44525846,0.00035519,2]
[367038913,1750630237961,-150.0,0.00035533,2]
[367038914,1750630237970,-150.73,0.00035534,2]
[367038915,1750630237980,-170.66987092,0.00035534,2]
[367038916,1750630237991,-150.73,0.00035539,2]
[367038917,1750630238001,-42479.31667131,0.0003554,2]
[367038918,1750630238012,-17305.61551437,0.0003554,2]
[367038919,1750630238046,-846.24307171,0.0003554,2]
[367039174,1750630240441,-40184.0,0.0003554,2]
[367039178,1750630240470,-5422.74276845,0.0003554,2]
[367039180,1750630240483,-2521.25723155,0.0003554,2]
[367039191,1750630240574,-935.98419861,0.0003554,2]
[367039193,1750630240584,-151.0,0.0003554,7]
[367039194,1750630240594,-151.0,0.0003554,7]
[367039197,1750630240604,-88.99527578,0.0003554,7]
[367039257,1750630242783,-202.0,0.00026852,2]
[367039259,1750630242793,-1161.0,0.00034064,2]
[367039260,1750630242803,-243.04660989,0.00035444,9]
[367039261,1750630242812,-62.00472422,0.0003554,7]
[367039262,1750630242825,-151.0,0.0003554,7]
[367039263,1750630242835,-151.0,0.0003554,7]
[367039264,1750630242845,-151.0,0.0003554,7]
[367039265,1750630242854,-279.76567731,0.0003554,19]
[367039266,1750630242864,-81063.52180132,0.0003554,19]
[367039267,1750630242907,-31321.3418258,0.0003554,19]
[367039268,1750630242921,-23944.40659471,0.0003554,19]
[367039269,1750630242931,-82271.3695919,0.0003554,2]
[367039270,1750630242940,-18929.37709006,0.0003554,2]
[367039277,1750630246132,-151.0,0.0003554,7]
[367039278,1750630246142,-151.0,0.0003554,7]
[367039279,1750630246151,-27220.61019114,0.0003554,2]
[367039280,1750630246161,-54847.579728,0.00035541,2]
[367039281,1750630246170,-831.44886437,0.00035541,2]
[367039282,1750630246182,-19506.28573709,0.00035541,2]
[367039283,1750630246193,-16601.68748971,0.00035541,2]
[367039284,1750630246208,-1430.67609967,0.00035541,2]
[367039285,1750630246228,-30854.88273106,0.00035541,2]
[367039286,1750630246237,-27423.789864,0.00035541,2]
[367039287,1750630246247,-151.0,0.00035541,7]
[367039288,1750630246258,-151.0,0.00035541,7]
[367039289,1750630246267,-151.0,0.00035541,7]
[367039290,1750630246277,-151.0,0.00035541,7]
[367039291,1750630246286,-151.0,0.00035541,7]
[367039292,1750630246295,-151.0,0.00035541,7]
[367039293,1750630246304,-151.0,0.00035541,7]
[367039294,1750630246313,-207.186243,0.00035541,7]
[367039295,1750630246327,-54847.579728,0.00035541,2]
[367039296,1750630246336,-38191.47842272,0.00035541,2]
[367039318,1750631072623,157.59,0.00013699,2]
[367039323,1750631115955,4135.6018139,0.0002,2]
[367039324,1750631122621,1664.66779731,0.0001994,2]
[367039325,1750631129122,521.6,0.000199,2]
[367039328,1750631158777,9036.42500234,0.0002001,2]
[367039331,1750631190295,10493.66114619,0.0002,2]
[367039332,1750631190322,7693.47336432,0.0002,2]
[367039337,1750631247206,4983.37397088,0.0002001,2]
[367039350,1750631258962,6069.73466456,0.0002,2]
[367039352,1750631276858,31253.41800024,0.00014,2]
[367039353,1750631276883,50000.0,0.00014,2]
[367039354,1750631276909,50000.0,0.00014,2]
[367039355,1750631276933,50000.0,0.00014,2]
[367039356,1750631276957,50000.0,0.00014,2]
[367039357,1750631276982,50000.0,0.00014,2]
[367039358,1750631277007,50000.0,0.00014,2]
[367039359,1750631277031,50000.0,0.00014,2]
[367039360,1750631277055,50000.0,0.00014,2]
[367039361,1750631277078,50000.0,0.00014,2]
[367039362,1750631277102,50000.0,0.00014,2]
[367039363,1750631277126,50000.0,0.00014,2]
[367039364,1750631277149,50000.0,0.00014,2]
[367039365,1750631277173,50000.0,0.00014,2]
[367039366,1750631277197,18746.58199976,0.00014,2]
[367039374,1750631310928,5772.0,0.0002001,2]
[367039375,1750631320900,13030.49439662,0.000195,2]
[367039376,1750631323403,12450.92360362,0.0002,2]
[367039377,1750631323427,50000.0,0.0002,2]
[367039378,1750631323451,12839.45273747,0.0002,2]
[367039383,1750631350338,804.075303,0.00020049,2]
[367039411,1750631432145,-452.45706685,0.0002015,2]
[367039412,1750631432156,-1228.90115392,0.0002015,2]
[367039413,1750631432166,-1200.0,0.00020699,2]
[367039414,1750631432175,-2768.49689681,0.000207,2]
[367039415,1750631432186,-1545.91910841,0.000207,2]
[367039416,1750631432197,-372.99804426,0.000207,2]
[367039417,1750631432270,-971.98974755,0.000207,2]
[367039418,1750631432281,-600.0,0.000207,2]
[367039419,1750631432327,-592.47713847,0.000207,2]
[367039420,1750631432339,-260.328,0.000207,2]
[367039421,1750631432409,-3188.1155704,0.000207,2]
[367039422,1750631432421,-849.83407237,0.000207,2]
[367039423,1750631432432,-871.91188984,0.000207,2]
[367039424,1750631432444,-1045.85852157,0.000207,2]
[367039425,1750631432474,-668.65463999,0.000207,2]
[367039426,1750631432485,-1858.00000002,0.000207,2]
[367039448,1750631437852,-804.52361988,0.000207,2]
[367039449,1750631437947,-2300.0,0.000207,2]
[367039450,1750631438043,-600.0,0.000207,2]
[367039451,1750631438055,-256.8745783,0.000207,2]
[367039452,1750631438066,-2467.08172746,0.000207,2]
[367039453,1750631438076,-250.0,0.00020999,2]
[367039454,1750631438085,-3464.28664394,0.00021,2]
[367039698,1750631440433,-1026.024995,0.00021,2]
[367039701,1750631440445,-1096.2,0.00021,2]
[367039707,1750631440493,-1626.11604874,0.00021,2]
[367039709,1750631440504,-678.23258319,0.00021,2]
[367039711,1750631440516,-343.81701123,0.00021,2]
[367039713,1750631440527,-2503.04915738,0.00021,2]
[367039722,1750631440597,-1030.08003019,0.00021,2]
[367039724,1750631440608,-1306.3999998,0.00021,2]
[367039726,1750631440619,-255.67333895,0.00021,2]
[367039733,1750631440661,-2645.0,0.00021,2]
[367039736,1750631440672,-4025.12019158,0.00021,2]
[367039739,1750631440682,-1160.17966833,0.00021,2]
[367039741,1750631440691,-191.48190174,0.00021,2]
[367039743,1750631440700,-600.0,0.00021555,2]
[367039745,1750631440710,-200.27748612,0.000219,6]
[367039747,1750631440719,-516.25109465,0.00021918,2]
[367039749,1750631440728,-248.97123399,0.00022,2]
[367039751,1750631440738,-500.0,0.00022,2]
[367039753,1750631440747,-233.33012262,0.0002211,2]
[367039755,1750631440759,-34447.28255139,0.000225,2]
[367039757,1750631440768,-200.27748609,0.00022604,7]
[367039759,1750631440778,-507.9713094,0.0002271,2]
[367039761,1750631440787,-204.0,0.00022852,2]
[367039763,1750631440797,-1500.0,0.00022918,2]
[367039765,1750631440806,-15890.85695409,0.00023102,2]
[367039767,1750631440818,-9300.35412261,0.00023102,2]
[367039769,1750631440830,-1041.97876837,0.00023102,2]
[367039774,1750631440865,-1719.25,0.00023102,2]
[367039984,1750631443116,-2781.01604809,0.00023102,2]
[367040003,1750631443286,-5309.39999988,0.00023102,2]
[367040005,1750631443299,-16166.73795536,0.00023102,2]
[367040007,1750631443309,-2348.47986655,0.000232,2]
[367040302,1750631446259,-848.3419997,0.000232,2]
[367040305,1750631446276,-23140.76219587,0.000232,2]
[367040307,1750631446287,-500.0,0.000232,2]
[367040308,1750631446300,-500.88195761,0.000232,2]
[367040311,1750631446311,-500.0,0.000232,2]
[367040312,1750631446320,-500.0,0.000232,2]
[367040314,1750631446330,-500.0,0.000232,2]
[367040316,1750631446340,-500.0,0.000232,2]
[367040318,1750631446350,-200.27748609,0.00023307,9]
[367040320,1750631446359,-1000.0,0.00023748,2]
[367040322,1750631446368,-1000.0,0.00023748,2]
[367040324,1750631446379,-1000.0,0.00023748,2]
[367040326,1750631446389,-8670.46187859,0.00023911,2]
[367040328,1750631446399,-11583.23637185,0.00024,2]
[367040330,1750631446408,-991.04063644,0.00024,2]
[367040332,1750631446417,-155.12,0.00024,2]
[367040334,1750631446426,-2580.9198951,0.00024,2]
[367040336,1750631446436,-200.27748609,0.00024011,10]
[367040338,1750631446445,-2314.53787028,0.000241,2]
[367040340,1750631446454,-409.59527798,0.0002421,2]
[367040342,1750631446464,-3589.94310761,0.0002421,2]
[367040344,1750631446473,-502.43524979,0.00024296,2]
[367040346,1750631446483,-1500.0,0.00024296,2]
[367040348,1750631446492,-1500.0,0.00024296,2]
[367040350,1750631446501,-204.0,0.00024621,4]
[367040352,1750631446511,-579.64695318,0.0002465,2]
[367040354,1750631446521,-11594.09033065,0.0002465,2]
[367040356,1750631446529,-234.44416006,0.0002465,2]
[367040358,1750631446538,-200.27748609,0.00024715,11]
[367040359,1750631446548,-399.12982782,0.00024844,2]
[367040361,1750631446557,-2000.0,0.00024844,2]
[367040363,1750631446566,-258.0,0.00024997,2]
[367040365,1750631446575,-610.0,0.00025,2]
[367040367,1750631446584,-159.828,0.00025,2]
[367040369,1750631446593,-8670.4618785,0.00025231,2]
[367040371,1750631446603,-2500.0,0.00025392,2]
[367040373,1750631446612,-200.27748609,0.00025419,13]
[367040375,1750631446622,-280.77,0.0002544,2]
[367040377,1750631446631,-409.47,0.00025786,2]
[367040379,1750631446640,-408.76011374,0.0002594,2]
[367040381,1750631446649,-200.27748609,0.00026122,14]
[367040383,1750631446658,-200.0,0.00026326,7]
[367040385,1750631446667,-204.0,0.0002639,7]
[367040387,1750631446676,-8352.17493384,0.00026551,2]
[367040392,1750631446713,-318.28694466,0.00026551,2]
[367040393,1750631446722,-200.27748609,0.00026826,15]
[367040395,1750631446732,-155.2,0.00027397,2]
[367040397,1750631446741,-200.27748609,0.0002753,17]
[367040399,1750631446750,-570.82,0.00027861,2]
[367040402,1750631446759,-8670.4618785,0.00027871,2]
[367040404,1750631446769,-204.0,0.00028159,10]
[367040406,1750631446779,-200.27748609,0.00028233,18]
[367040408,1750631446788,-209.0,0.00028423,3]
[367040410,1750631446797,-500.0,0.00028748,2]
[367040412,1750631446806,-200.27748609,0.00028937,20]
[367040414,1750631446815,-152.0,0.00029,120]
[367040416,1750631446824,-168.0,0.00029,120]
[367040418,1750631446833,-157.59,0.0002911,2]
[367040420,1750631446842,-244.93,0.00029141,2]
[367040422,1750631446851,-244.93,0.00029149,2]
[367040424,1750631446860,-244.93,0.00029156,2]
[367040426,1750631446869,-244.93,0.00029164,2]
[367040428,1750631446878,-244.93,0.00029172,2]
[367040430,1750631446887,-209.88363782,0.00029179,2]
[367040457,1750631447149,-35.04636218,0.00029179,2]
[367040459,1750631447158,-244.93,0.00029187,2]
[367040461,1750631447167,-3941.29934666,0.00029191,2]
[367040521,1750631703132,302.0,0.000165,7]
[367040528,1750631925762,458.0,0.000201,2]
[367040546,1750632401384,203.0,0.00019852,2]
[367040549,1750632425039,156.34,0.00013699,2]
[367040569,1750632632066,-151.0,0.00020852,2]
[367040570,1750632632076,-156.587,0.000214,2]
[367040571,1750632632086,-203.0,0.00021764,4]
[367040572,1750632632096,-162.380719,0.00021948,2]
[367040573,1750632632106,-168.3888056,0.00022496,2]
[367040574,1750632632115,-174.61919141,0.00023044,2]
[367040575,1750632632126,-181.08010149,0.00023592,2]
[367040576,1750632632136,-203.0,0.00023675,7]
[367040577,1750632632145,-187.78006525,0.0002414,2]
[367040578,1750632632156,-194.72792766,0.00024688,2]
[367040579,1750632632166,-300.0,0.00025137,120]
[367040580,1750632632175,-250.0,0.00025137,2]
[367040581,1750632632185,-201.93286099,0.00025236,2]
[367040582,1750632632194,-203.0,0.00025587,10]
[367040583,1750632632204,-192.12497409,0.000257,2]
[367040584,1750632632214,-209.40437684,0.00025784,2]
[367040585,1750632632223,-300.0,0.00026021,120]
[367040586,1750632632233,-217.15233878,0.00026332,2]
[367040587,1750632632242,-225.18697532,0.0002688,2]
[367040588,1750632632252,-155.12,0.00027033,2]
[367040589,1750632632261,-233.51889341,0.00027428,2]
[367040590,1750632632271,-203.0,0.00027499,13]
[367040591,1750632632280,-288.34189227,0.00027976,2]
[367040592,1750632632290,-500.0,0.00028051,2]
[367040593,1750632632299,-1200.0,0.00028665,2]
[367040594,1750632632309,-3450.356063,0.00028666,2]
[367040595,1750632632318,-462.99243722,0.0002881,2]
[367040596,1750632632358,-405.49432471,0.0002881,2]
[367040597,1750632632368,-83.84894215,0.0002881,2]
[367040598,1750632632380,-216.15105785,0.0002881,2]
[367040599,1750632632390,-1633.34157,0.000289,2]
[367040600,1750632632399,-300.0,0.00028901,2]
[367040601,1750632632408,-300.0,0.00028982,2]
[367040602,1750632632417,-151.0,0.00028983,2]
[367040603,1750632632427,-151.0,0.00028983,2]
[367040604,1750632632436,-151.0,0.00028983,2]
[367040605,1750632632445,-188.0,0.00028983,2]
[367040606,1750632632455,-2000.0,0.00029,2]
[367040607,1750632632464,-30461.46,0.00029,2]
[367040609,1750632632473,-151.0,0.00029038,2]
[367040611,1750632632482,-151.0,0.00029093,2]
[367040613,1750632632491,-156.34,0.0002911,2]
[367040614,1750632632501,-277.50547284,0.00029148,2]
[367040615,1750632632510,-300.0,0.00029191,2]
[367040616,1750632632519,-244.93,0.00029195,2]
[367040617,1750632632529,-472.96,0.00029197,2]
[367040618,1750632632538,-244.93,0.00029202,2]
[367040619,1750632632547,-244.93,0.0002921,2]
[367040620,1750632632556,-244.93,0.00029218,2]
[367040621,1750632632567,-244.93,0.00029225,2]
[367040622,1750632632577,-244.93,0.00029233,2]
[367040623,1750632632586,-244.93,0.00029241,2]
[367040624,1750632632595,-244.93,0.00029248,2]
[367040625,1750632632605,-244.93,0.00029256,2]
[367040626,1750632632614,-244.93,0.00029264,2]
[367040627,1750632632623,-244.93,0.00029271,2]
[367040628,1750632632633,-244.93,0.00029279,2]
[367040629,1750632632644,-4372.08,0.00029282,2]
[367040630,1750632632654,-244.93,0.00029287,2]
[367040631,1750632632664,-666.0,0.00029325,2]
[367040632,1750632632673,-165.35,0.00029369,2]
[367040633,1750632632684,-203.0,0.00029411,15]
[367040634,1750632632695,-267.96,0.00029739,2]
[367040635,1750632632704,-200.27748609,0.000299,21]
[367040636,1750632632713,-1633.34158,0.000299,2]
[367040637,1750632632723,-173.34,0.00029954,2]
[367040638,1750632632732,-1515.58146467,0.0003,30]
[367040639,1750632632741,-174.86462092,0.0003,2]
[367040640,1750632632751,-157.19,0.00030166,2]
[367040641,1750632632761,-250.0,0.0003022,2]
[367040642,1750632632770,-200.27748609,0.00030588,23]
[367040643,1750632632780,-1633.34158,0.000309,2]
[367040644,1750632632789,-204.063,0.00030982,27]
[367040645,1750632632800,-3599.34,0.00031017,2]
[367040646,1750632632810,-23900.0,0.00031082,2]
[367040647,1750632632820,-465.83,0.00031112,120]
[367040648,1750632632830,-315.43,0.00031127,2]
[367040649,1750632632839,-419.18,0.00031141,2]
[367040650,1750632632848,-185.36,0.00031154,2]
[367040651,1750632632857,-200.0,0.00031201,2]
[367040652,1750632632866,-157.19,0.00031259,2]
[367040653,1750632632876,-200.27748609,0.00031275,24]
[367040654,1750632632885,-1000.0,0.000313,2]
[367040655,1750632632895,-203.0,0.00031323,18]
[367040656,1750632632904,-35757.04423922,0.000314,30]
[367040657,1750632632913,-1657.84,0.00031437,2]
[367040658,1750632632922,-1500.0,0.000318,2]
[367040659,1750632632932,-1633.34158,0.000319,2]
[367040660,1750632632941,-200.27748609,0.00031963,26]
[367040661,1750632632950,-419.18,0.00032309,2]
[367040662,1750632632959,-151.0,0.0003235,7]
[367040663,1750632632968,-254.963836,0.0003235,7]
[367040664,1750632632976,-254.963836,0.0003235,7]
[367040665,1750632632986,-157.19,0.00032353,2]
[367040666,1750632632995,-200.27748609,0.0003265,27]
[367040667,1750632633004,-1633.34158,0.000329,2]
[367040668,1750632633014,-482.98,0.00032904,30]
[367040669,1750632633025,-203.0,0.00033235,21]
[367040670,1750632633035,-3500.0,0.000333,7]
[367040671,1750632633044,-150.0,0.00033333,2]
[367040672,1750632633054,-200.27748609,0.00033338,28]
[367040673,1750632633064,-157.19,0.00033447,2]
[367040674,1750632633073,-419.18,0.00033477,2]
[367040675,1750632633083,-154.96,0.000335,31]
[367040676,1750632633092,-1000.0,0.00033702,2]
[367040677,1750632633102,-150.0,0.00033766,2]
[367040678,1750632633112,-254.85,0.00033801,120]
[367040679,1750632633122,-151.0,0.00033806,2]
[367040680,1750632633132,-151.0,0.00033806,2]
[367040681,1750632633141,-151.0,0.00033806,2]
[367040682,1750632633151,-500.0,0.00033806,2]
[367040683,1750632633160,-500.0,0.00033806,2]
[367040684,1750632633170,-500.0,0.00033806,2]
[367040685,1750632633181,-500.0,0.00033806,2]
[367040686,1750632633191,-500.0,0.00033806,2]
[367040687,1750632633200,-500.0,0.00033806,2]
[367040688,1750632633210,-1957.856,0.00033806,2]
[367040689,1750632633219,-500.0,0.00033806,2]
[367040690,1750632633229,-500.0,0.00033806,2]
[367040691,1750632633238,-500.0,0.00033806,2]
[367040692,1750632633248,-1000.0,0.00033806,2]
[367040693,1750632633257,-500.0,0.00033806,2]
[367040694,1750632633266,-500.0,0.00033806,2]
[367040695,1750632633276,-500.0,0.00033806,2]
[367040696,1750632633286,-1000.0,0.00033806,2]
[367040697,1750632633295,-500.0,0.00033806,2]
[367040698,1750632633304,-500.0,0.00033806,2]
[367040699,1750632633313,-500.0,0.00033806,2]
[367040700,1750632633322,-500.0,0.00033806,2]
[367040701,1750632633331,-500.0,0.00033806,2]
[367040702,1750632633340,-500.0,0.00033806,2]
[367040703,1750632633350,-500.0,0.00033806,2]
[367040704,1750632633360,-500.0,0.00033806,2]
[367040705,1750632633369,-500.0,0.00033806,2]
[367040706,1750632633378,-500.0,0.00033806,2]
[367040707,1750632633387,-500.0,0.00033806,2]
[367040708,1750632633397,-500.0,0.00033806,2]
[367040709,1750632633406,-500.0,0.00033806,2]
[367040710,1750632633416,-500.0,0.00033806,2]
[367040711,1750632633426,-500.0,0.00033806,2]
[367040712,1750632633435,-151.0,0.00033806,2]
[367040713,1750632633444,-500.0,0.00033806,2]
[367040714,1750632633453,-500.0,0.00033806,2]
[367040715,1750632633462,-500.0,0.00033806,2]
[367040716,1750632633471,-500.0,0.00033806,2]
[367040717,1750632633481,-500.0,0.00033806,2]
[367040718,1750632633490,-500.0,0.00033806,2]
[367040719,1750632633499,-500.0,0.00033806,2]
[367040720,1750632633508,-500.0,0.00033806,2]
[367040721,1750632633517,-500.0,0.00033806,2]
[367040722,1750632633527,-500.0,0.00033806,2]
[367040723,1750632633537,-500.0,0.00033806,2]
[367040724,1750632633546,-500.0,0.00033806,2]
[367040725,1750632633555,-500.0,0.00033806,2]
[367040726,1750632633564,-500.0,0.00033806,2]
[367040727,1750632633573,-500.0,0.00033806,2]
[367040728,1750632633583,-151.0,0.00033806,2]
[367040729,1750632633593,-151.0,0.00033806,2]
[367040730,1750632633602,-500.0,0.00033806,2]
[367040731,1750632633611,-151.0,0.00033806,2]
[367040732,1750632633620,-500.0,0.00033806,2]
[367040733,1750632633629,-151.0,0.00033806,2]
[367040734,1750632633639,-500.0,0.00033806,2]
[367040735,1750632633650,-151.0,0.00033806,2]
[367040736,1750632633660,-500.0,0.00033806,2]
[367040737,1750632633669,-151.0,0.00033806,2]
[367040738,1750632633678,-500.0,0.00033806,2]
[367040739,1750632633689,-151.0,0.00033806,2]
[367040740,1750632633698,-244.0,0.00033806,2]
[367040741,1750632633708,-151.0,0.00033806,2]
[367040742,1750632633718,-151.0,0.00033806,2]
[367040743,1750632633727,-171.08010149,0.00033806,2]
[367040744,1750632633737,-151.0,0.00033806,2]
[367040745,1750632633746,-151.0,0.00033806,2]
[367040746,1750632633755,-151.0,0.00033806,2]
[367040747,1750632633764,-151.0,0.00033806,2]
[367040748,1750632633773,-174.93115933,0.00033806,2]
[367040749,1750632633783,-207.4,0.00033806,2]
[367040750,1750632633792,-668.65185757,0.00033806,2]
[367040751,1750632633801,-150.0,0.00033806,120]
[367040752,1750632633811,-150.0,0.00033806,2]
[367040753,1750632633820,-150.0,0.00033833,120]
[367040754,1750632633829,-401.07,0.00033851,3]
[367040755,1750632633838,-200.0,0.00033861,120]
[367040756,1750632633847,-2030.296672,0.00033861,2]
[367040757,1750632633856,-1633.34158,0.000339,2]
[367040758,1750632633865,-495.0,0.00033916,5]
[367040759,1750632633875,-2105.41764886,0.00033916,2]
[367040760,1750632633884,-2183.31810187,0.00033971,2]
[367040761,1750632633893,-200.27748609,0.00034025,30]
[367040762,1750632633902,-2264.10087164,0.00034026,2]
[367040763,1750632633911,-300.0,0.00034063,2]
[367040764,1750632633920,-2347.87260389,0.00034081,2]
[367040765,1750632633930,-1000.0,0.00034122,2]
[367040766,1750632633939,-2434.74389024,0.00034136,2]
[367040767,1750632633948,-150.0,0.00034137,2]
[367040768,1750632633958,-4808.14719247,0.00034146,2]
[367040769,1750632633967,-2524.82941417,0.00034191,2]
[367040770,1750632633976,-150.0,0.00034217,2]
[367040771,1750632633985,-300.0,0.00034236,2]
[367040772,1750632633995,-2618.2481025,0.00034246,2]
[367040773,1750632634004,-2715.12328229,0.00034301,2]
[367040774,1750632634013,-150.0,0.00034341,2]
[367040775,1750632634023,-151.0,0.00034354,2]
[367040776,1750632634033,-2815.58284374,0.00034356,2]
[367040777,1750632634042,-4808.14719243,0.00034359,2]
[367040778,1750632634051,-150.0,0.00034379,2]
[367040779,1750632634061,-150.0,0.00034381,2]
[367040780,1750632634070,-2919.75940895,0.00034411,2]
[367040781,1750632634079,-150.0,0.00034423,2]
[367040782,1750632634089,-3027.79050709,0.00034466,2]
[367040783,1750632634098,-1500.0,0.000345,2]
[367040784,1750632634107,-695.882549,0.00034501,16]
[367040785,1750632634116,-462.05,0.00034521,2]
[367040786,1750632634125,-3139.81875585,0.00034521,2]
[367040787,1750632634135,-157.19,0.0003454,2]
[367040788,1750632634144,-4808.14719243,0.00034572,2]
[367040789,1750632634154,-3255.99204981,0.00034576,2]
[367040790,1750632634163,-179.75,0.000346,2]
[367040791,1750632634173,-3376.46375566,0.00034631,2]
[367040792,1750632634182,-419.18,0.00034644,2]
[367040793,1750632634191,-300.0,0.00034645,2]
[367040794,1750632634200,-150.0,0.00034647,2]
[367040795,1750632634210,-150.0,0.0003465,2]
[367040796,1750632634219,-150.0,0.00034658,2]
[367040797,1750632634228,-3310.83983641,0.00034686,2]
[367040798,1750632634237,-400.0,0.000347,12]
[367040799,1750632634247,-200.27748609,0.00034713,31]
[367040800,1750632634256,-150.0,0.00034762,2]
[367040801,1750632634265,-150.0,0.00034782,2]
[367040802,1750632634275,-4808.14719243,0.00034785,2]
[367040803,1750632634284,-800.0,0.000348,12]
[367040804,1750632634293,-150.0,0.0003486,2]
[367040805,1750632634303,-174.7300486,0.00034868,2]
[367040806,1750632634312,-156.2502107,0.00034872,15]
[367040807,1750632634321,-5413.18736507,0.00034872,2]
[367040808,1750632634331,-285.41,0.00034889,2]
[367040809,1750632634340,-500.0,0.0003489,2]
[367040810,1750632634349,-1486.6057,0.0003489,2]
[367040811,1750632634358,-9983.33743696,0.00034899,2]
[367040812,1750632634372,-2381.04070713,0.00034899,2]
[367040813,1750632634383,-4614.66753364,0.00034899,2]
[367040814,1750632634409,-7911.63582227,0.00034899,2]
[367040815,1750632634418,-2991.68320429,0.000349,3]
[367040816,1750632634430,-1345.16219571,0.000349,3]
[367040817,1750632634439,-268.34440664,0.000349,2]
[367040818,1750632634448,-1200.0,0.000349,12]
[367040819,1750632634457,-151.0,0.00034902,2]
[367040820,1750632634466,-1627.9767427,0.00034916,19]
[367040821,1750632634484,-2839.85367162,0.00034916,19]
[367040822,1750632634506,-549.3,0.00034916,19]
[367040823,1750632634517,-2275.87269152,0.00034916,19]
[367040824,1750632634533,-2681.36558463,0.00034916,19]
[367040833,1750632638835,-522.27499128,0.00034916,19]
[367040834,1750632638847,-5876.89144611,0.00034916,19]
[367040835,1750632638858,-10093.8143677,0.00034916,19]
[367040836,1750632638870,-517.17495246,0.00034916,19]
[367040837,1750632638880,-1110.07004804,0.00034916,19]
[367040838,1750632638895,-588.73150695,0.00034916,19]
[367040839,1750632638906,-630.31900023,0.00034916,19]
[367040840,1750632639299,-1177.12540222,0.00034916,19]
[367040841,1750632639314,-445.02,0.00034916,19]
[367040851,1750632640689,-272.538,0.00034916,19]
[367040852,1750632640701,-852.3702288,0.00034916,19]
[367040854,1750632640712,-30273.0,0.00034916,19]
[367040855,1750632640730,-1002.00191032,0.00034916,19]
[367040856,1750632641383,200.0,0.00019852,2]
[367040870,1750632643265,-527.905704,0.00034916,19]